[Event "Late-Titled-Tuesday-Blitz-January-16-2024"]
[Site "Chess.com"]
[Date "2024.01.16"]
[Round "1"]
[White "platy3"]
[Black "Valeron87"]
[Result "1-0"]
[WhiteElo "2891"]
[BlackElo "2477"]
[TimeControl "180+1"]
[EndTime "14:08:17 PST"]
[Termination "platy3 won on time"]

1. e4 {[%clk 0:03:00.9]} 1... c5 {[%clk 0:02:59.1]} 2. Nf3 {[%clk 0:03:00]} 2...
Nc6 {[%clk 0:02:59.4]} 3. d4 {[%clk 0:02:59.1]} 3... cxd4 {[%clk 0:02:59.6]} 4.
Nxd4 {[%clk 0:03:00]} 4... Nf6 {[%clk 0:03:00.2]} 5. Nc3 {[%clk 0:02:59.9]} 5...
e5 {[%clk 0:03:00.5]} 6. Ndb5 {[%clk 0:03:00.6]} 6... d6 {[%clk 0:03:00.1]} 7.
Nd5 {[%clk 0:03:01.3]} 7... Nxd5 {[%clk 0:02:59.7]} 8. exd5 {[%clk 0:03:02.2]}
8... Nb8 {[%clk 0:03:00.2]} 9. c4 {[%clk 0:03:02.3]} 9... Be7 {[%clk 0:02:59.3]}
10. Bd3 {[%clk 0:03:00.6]} 10... a6 {[%clk 0:02:59.1]} 11. Nc3 {[%clk
0:03:00.1]} 11... O-O {[%clk 0:02:59.7]} 12. O-O {[%clk 0:02:58]} 12... f5
{[%clk 0:03:00]} 13. f3 {[%clk 0:02:55.5]} 13... Nd7 {[%clk 0:02:59.9]} 14. Kh1
{[%clk 0:02:54.9]} 14... b6 {[%clk 0:02:50.9]} 15. Be3 {[%clk 0:02:53.2]} 15...
Bg5 {[%clk 0:02:49.9]} 16. Qd2 {[%clk 0:02:39.5]} 16... Bxe3 {[%clk 0:02:42.7]}
17. Qxe3 {[%clk 0:02:40.4]} 17... Rb8 {[%clk 0:02:19.5]} 18. b4 {[%clk
0:02:38.2]} 18... Qf6 {[%clk 0:02:12.7]} 19. Rac1 {[%clk 0:02:35.3]} 19... Bb7
{[%clk 0:02:07.9]} 20. a3 {[%clk 0:02:32.4]} 20... Rbe8 {[%clk 0:02:07.7]} 21.
Bb1 {[%clk 0:02:29.5]} 21... Qh4 {[%clk 0:01:59.4]} 22. Na4 {[%clk 0:02:26.1]}
22... Qd8 {[%clk 0:01:57.9]} 23. Rcd1 {[%clk 0:02:20.8]} 23... Kh8 {[%clk
0:01:57.6]} 24. Rfe1 {[%clk 0:02:17.7]} 24... e4 {[%clk 0:01:53.7]} 25. f4
{[%clk 0:02:09.6]} 25... b5 {[%clk 0:01:37.3]} 26. cxb5 {[%clk 0:02:07.5]} 26...
axb5 {[%clk 0:01:37.5]} 27. Nc3 {[%clk 0:02:08.3]} 27... Nb6 {[%clk 0:01:22.2]}
28. Ba2 {[%clk 0:02:03.3]} 28... Nc4 {[%clk 0:01:20.6]} 29. Bxc4 {[%clk
0:01:58.4]} 29... bxc4 {[%clk 0:01:21.5]} 30. b5 {[%clk 0:01:59.2]} 30... Qa5
{[%clk 0:01:20.9]} 31. a4 {[%clk 0:01:59.2]} 31... Kg8 {[%clk 0:01:12.5]} 32. h3
{[%clk 0:01:46.6]} 32... Rf7 {[%clk 0:01:05.5]} 33. Rb1 {[%clk 0:01:46.1]} 33...
g5 {[%clk 0:01:04.5]} 34. fxg5 {[%clk 0:01:38.8]} 34... f4 {[%clk 0:01:04.3]}
35. Qd4 {[%clk 0:01:39.2]} 35... e3 {[%clk 0:01:01.8]} 36. Ne4 {[%clk
0:01:33.4]} 36... Re5 {[%clk 0:00:49.9]} 37. Nf6+ {[%clk 0:01:22]} 37... Kf8
{[%clk 0:00:48.2]} 38. Qxf4 {[%clk 0:01:19.2]} 38... e2 {[%clk 0:00:28.1]} 39.
Qxc4 {[%clk 0:01:02.9]} 39... Qd2 {[%clk 0:00:20.5]} 40. Ne4 {[%clk 0:00:38.2]}
40... Qf4 {[%clk 0:00:19]} 41. Nxd6 {[%clk 0:00:35.9]} 41... Qxc4 {[%clk
0:00:11.1]} 42. Nxc4 {[%clk 0:00:35.6]} 42... Rxg5 {[%clk 0:00:10.7]} 43. Rxe2
{[%clk 0:00:31.2]} 43... Bxd5 {[%clk 0:00:11.1]} 44. Ne3 {[%clk 0:00:26.7]}
44... Be4 {[%clk 0:00:10.1]} 45. Rb4 {[%clk 0:00:20.8]} 45... Bb7 {[%clk
0:00:04.6]} 46. Kg1 {[%clk 0:00:20.7]} 46... Re7 {[%clk 0:00:04.4]} 47. Kf2
{[%clk 0:00:17.7]} 47... Rf7+ {[%clk 0:00:03.9]} 48. Ke1 {[%clk 0:00:17.8]}
48... Re7 {[%clk 0:00:03.6]} 49. g4 {[%clk 0:00:14]} 49... Rge5 {[%clk 0:00:04]}
50. Kf2 {[%clk 0:00:13.6]} 50... Be4 {[%clk 0:00:04]} 51. Nc4 {[%clk 0:00:12]}
51... R5e6 {[%clk 0:00:03]} 52. Nd2 {[%clk 0:00:10]} 52... Bd3 {[%clk
0:00:02.3]} 53. Rxe6 {[%clk 0:00:09.9]} 53... Rxe6 {[%clk 0:00:02.9]} 54. Nf3
{[%clk 0:00:10.6]} 54... Rf6 {[%clk 0:00:02.8]} 55. Kg3 {[%clk 0:00:10.6]} 55...
Be2 {[%clk 0:00:02.8]} 56. Ne5 {[%clk 0:00:11]} 56... Bd1 {[%clk 0:00:02.4]} 57.
Nd7+ {[%clk 0:00:11.1]} 1-0

[Event "Late-Titled-Tuesday-Blitz-January-16-2024"]
[Site "Chess.com"]
[Date "2024.01.16"]
[Round "1"]
[White "IlanSchnaider"]
[Black "GlavkonVVS"]
[Result "1-0"]
[WhiteElo "2816"]
[BlackElo "2450"]
[TimeControl "180+1"]
[EndTime "14:08:18 PST"]
[Termination "IlanSchnaider won on time"]

1. e4 {[%clk 0:03:00.9]} 1... Nf6 {[%clk 0:03:00.6]} 2. e5 {[%clk 0:02:59.7]}
2... Nd5 {[%clk 0:03:01]} 3. d4 {[%clk 0:03:00.5]} 3... d6 {[%clk 0:03:01.1]} 4.
Nf3 {[%clk 0:03:01.2]} 4... Bg4 {[%clk 0:03:00.8]} 5. Bc4 {[%clk 0:02:49]} 5...
dxe5 {[%clk 0:02:59.8]} 6. dxe5 {[%clk 0:02:47.3]} 6... e6 {[%clk 0:03:00]} 7.
h3 {[%clk 0:02:45.8]} 7... Bh5 {[%clk 0:02:59.9]} 8. O-O {[%clk 0:02:45.7]} 8...
Be7 {[%clk 0:02:59.7]} 9. Nbd2 {[%clk 0:02:39.5]} 9... Nd7 {[%clk 0:02:53.4]}
10. Bxd5 {[%clk 0:02:36.7]} 10... exd5 {[%clk 0:02:53.2]} 11. Re1 {[%clk
0:02:37.5]} 11... Nc5 {[%clk 0:02:50]} 12. c3 {[%clk 0:02:31.8]} 12... O-O
{[%clk 0:02:49.2]} 13. Nf1 {[%clk 0:02:29.3]} 13... Ne6 {[%clk 0:02:47.9]} 14.
Ng3 {[%clk 0:02:29.5]} 14... Bg6 {[%clk 0:02:48.1]} 15. Be3 {[%clk 0:02:29.4]}
15... c5 {[%clk 0:02:47.9]} 16. Qd2 {[%clk 0:02:26.5]} 16... Qd7 {[%clk
0:02:47.7]} 17. Rad1 {[%clk 0:02:25.1]} 17... Rfd8 {[%clk 0:02:47.8]} 18. h4
{[%clk 0:02:23.3]} 18... h5 {[%clk 0:02:36.8]} 19. Ng5 {[%clk 0:02:14.9]} 19...
Qa4 {[%clk 0:02:28.6]} 20. Nxe6 {[%clk 0:02:11.3]} 20... fxe6 {[%clk 0:02:28.5]}
21. Bg5 {[%clk 0:02:12.1]} 21... Rd7 {[%clk 0:02:11.6]} 22. Bxe7 {[%clk
0:02:09.8]} 22... Rxe7 {[%clk 0:02:11.9]} 23. Qg5 {[%clk 0:02:10.5]} 23... Qe8
{[%clk 0:02:12]} 24. f4 {[%clk 0:02:06.9]} 24... Qf7 {[%clk 0:02:08.9]} 25. Rf1
{[%clk 0:02:06.4]} 25... Rf8 {[%clk 0:02:08.8]} 26. Rd2 {[%clk 0:02:01.2]} 26...
Kh7 {[%clk 0:02:07.2]} 27. Rdf2 {[%clk 0:01:56.6]} 27... Bd3 {[%clk 0:02:06.1]}
28. Rd1 {[%clk 0:01:54.1]} 28... Bg6 {[%clk 0:02:05.5]} 29. Rf3 {[%clk
0:01:54.2]} 29... Rd7 {[%clk 0:01:53.5]} 30. Rdf1 {[%clk 0:01:53]} 30... d4
{[%clk 0:01:49.1]} 31. f5 {[%clk 0:01:49.7]} 31... exf5 {[%clk 0:01:49.2]} 32.
Nxf5 {[%clk 0:01:50]} 32... Qd5 {[%clk 0:01:32.1]} 33. Ne7 {[%clk 0:01:35.8]}
33... Rxe7 {[%clk 0:01:26.5]} 34. Rxf8 {[%clk 0:01:35.5]} 34... Rxe5 {[%clk
0:01:24]} 35. Qd8 {[%clk 0:00:51.6]} 35... Qxd8 {[%clk 0:01:23.4]} 36. Rxd8
{[%clk 0:00:52.5]} 36... d3 {[%clk 0:01:20.4]} 37. Rff8 {[%clk 0:00:52.6]} 37...
Be4 {[%clk 0:01:19.3]} 38. Rh8+ {[%clk 0:00:50.1]} 38... Kg6 {[%clk 0:01:18.2]}
39. Rd6+ {[%clk 0:00:50.7]} 39... Kf7 {[%clk 0:01:17.1]} 40. Rhd8 {[%clk
0:00:44.6]} 40... c4 {[%clk 0:01:12.8]} 41. b3 {[%clk 0:00:42.4]} 41... b5
{[%clk 0:01:10.7]} 42. Rd4 {[%clk 0:00:42.4]} 42... cxb3 {[%clk 0:00:58.7]} 43.
axb3 {[%clk 0:00:43.3]} 43... a5 {[%clk 0:00:55.8]} 44. R8d7+ {[%clk 0:00:34.6]}
44... Kg8 {[%clk 0:00:42.2]} 45. Ra7 {[%clk 0:00:33.9]} 45... Rd5 {[%clk
0:00:30.4]} 46. Kf2 {[%clk 0:00:23.1]} 46... Rxd4 {[%clk 0:00:17.8]} 47. cxd4
{[%clk 0:00:23.1]} 47... Bd5 {[%clk 0:00:16]} 48. Rxa5 {[%clk 0:00:15.5]} 48...
Bxb3 {[%clk 0:00:15.8]} 49. Ke3 {[%clk 0:00:16.1]} 49... Bc4 {[%clk 0:00:15.5]}
50. Ra7 {[%clk 0:00:14.3]} 50... Kf8 {[%clk 0:00:14.5]} 51. g3 {[%clk
0:00:13.7]} 51... Kg8 {[%clk 0:00:14.7]} 52. Rd7 {[%clk 0:00:13.7]} 52... Kf8
{[%clk 0:00:14.8]} 53. Kd2 {[%clk 0:00:14.2]} 53... g6 {[%clk 0:00:15.2]} 54.
Kc3 {[%clk 0:00:14.2]} 54... Ke8 {[%clk 0:00:15.6]} 55. Rg7 {[%clk 0:00:13.9]}
55... Bf7 {[%clk 0:00:11.1]} 56. d5 {[%clk 0:00:07.6]} 56... Kf8 {[%clk
0:00:11]} 57. d6 {[%clk 0:00:07.7]} 57... Kxg7 {[%clk 0:00:04.8]} 58. d7 {[%clk
0:00:07.9]} 58... d2 {[%clk 0:00:01.4]} 59. Kxd2 {[%clk 0:00:07.7]} 1-0

[Event "Late-Titled-Tuesday-Blitz-January-16-2024"]
[Site "Chess.com"]
[Date "2024.01.16"]
[Round "1"]
[White "Russian_berezka"]
[Black "nikitadovbnya2008"]
[Result "1-0"]
[WhiteElo "2571"]
[BlackElo "2169"]
[TimeControl "180+1"]
[EndTime "14:08:20 PST"]
[Termination "Russian_berezka won by checkmate"]

1. c3 {[%clk 0:02:52.5]} 1... d5 {[%clk 0:02:56.3]} 2. d4 {[%clk 0:02:51.9]}
2... Nf6 {[%clk 0:02:53.8]} 3. Bf4 {[%clk 0:02:51.7]} 3... Bf5 {[%clk
0:02:49.5]} 4. e3 {[%clk 0:02:51.4]} 4... e6 {[%clk 0:02:49.7]} 5. Nd2 {[%clk
0:02:50]} 5... Bd6 {[%clk 0:02:49.6]} 6. Bg3 {[%clk 0:02:49.8]} 6... O-O {[%clk
0:02:48]} 7. Ngf3 {[%clk 0:02:49.2]} 7... c5 {[%clk 0:02:45.4]} 8. Be2 {[%clk
0:02:49.2]} 8... Nc6 {[%clk 0:02:45.3]} 9. Ne5 {[%clk 0:02:49.4]} 9... Qc7
{[%clk 0:02:42.2]} 10. f4 {[%clk 0:02:49.1]} 10... Ne4 {[%clk 0:02:38.5]} 11.
O-O {[%clk 0:02:41.2]} 11... f6 {[%clk 0:02:15.5]} 12. Nxc6 {[%clk 0:02:35.9]}
12... bxc6 {[%clk 0:02:16.4]} 13. Bh4 {[%clk 0:02:36.1]} 13... cxd4 {[%clk
0:02:11.9]} 14. cxd4 {[%clk 0:02:35.9]} 14... Nxd2 {[%clk 0:02:08.5]} 15. Qxd2
{[%clk 0:02:35.9]} 15... c5 {[%clk 0:02:08.8]} 16. Rac1 {[%clk 0:02:34.8]} 16...
Qb6 {[%clk 0:02:08.7]} 17. Kh1 {[%clk 0:02:21]} 17... Be4 {[%clk 0:02:03.6]} 18.
Bd3 {[%clk 0:02:03.8]} 18... Bxd3 {[%clk 0:01:53.1]} 19. Qxd3 {[%clk 0:02:04.7]}
19... c4 {[%clk 0:01:53.8]} 20. Qc2 {[%clk 0:02:04]} 20... f5 {[%clk 0:01:54.3]}
21. b3 {[%clk 0:02:02.3]} 21... Rfc8 {[%clk 0:01:42.4]} 22. bxc4 {[%clk
0:02:02.6]} 22... Rxc4 {[%clk 0:01:43.3]} 23. Qd3 {[%clk 0:02:03.1]} 23... Rac8
{[%clk 0:01:41.7]} 24. Rb1 {[%clk 0:02:03.3]} 24... Qa6 {[%clk 0:01:39.7]} 25.
a3 {[%clk 0:01:56.6]} 25... Qxa3 {[%clk 0:01:33.4]} 26. Qe2 {[%clk 0:01:43.4]}
26... Rc1 {[%clk 0:01:04.3]} 27. h3 {[%clk 0:01:39.3]} 27... Rxb1 {[%clk
0:01:01.8]} 28. Rxb1 {[%clk 0:01:40.2]} 28... Rc1+ {[%clk 0:01:02.2]} 29. Rxc1
{[%clk 0:01:40.8]} 29... Qxc1+ {[%clk 0:01:03.1]} 30. Kh2 {[%clk 0:01:41.5]}
30... Qc6 {[%clk 0:01:03.6]} 31. Qb2 {[%clk 0:01:40.3]} 31... a5 {[%clk
0:00:58.6]} 32. Qd2 {[%clk 0:01:31]} 32... Bb4 {[%clk 0:00:55.5]} 33. Qb2 {[%clk
0:01:15.2]} 33... Kf7 {[%clk 0:00:53.2]} 34. Bf2 {[%clk 0:01:11.4]} 34... Bd6
{[%clk 0:00:47.4]} 35. Qd2 {[%clk 0:01:07.9]} 35... a4 {[%clk 0:00:46.8]} 36.
Qa5 {[%clk 0:01:08]} 36... a3 {[%clk 0:00:44.4]} 37. g4 {[%clk 0:01:05.7]} 37...
fxg4 {[%clk 0:00:40.4]} 38. hxg4 {[%clk 0:01:06.6]} 38... h6 {[%clk 0:00:40.3]}
39. Kh3 {[%clk 0:00:56.8]} 39... g5 {[%clk 0:00:39.8]} 40. f5 {[%clk 0:00:47.7]}
40... exf5 {[%clk 0:00:39.7]} 41. gxf5 {[%clk 0:00:48.6]} 41... Kf6 {[%clk
0:00:40.3]} 42. Qd8+ {[%clk 0:00:46.9]} 42... Kxf5 {[%clk 0:00:22.8]} 43. Qh8
{[%clk 0:00:46.8]} 43... g4+ {[%clk 0:00:18.5]} 44. Kg2 {[%clk 0:00:42.2]} 44...
Bc7 {[%clk 0:00:19.2]} 45. Qf8+ {[%clk 0:00:40.5]} 45... Ke6 {[%clk 0:00:18]}
46. Qxa3 {[%clk 0:00:41]} 46... Bd6 {[%clk 0:00:16.5]} 47. Qa7 {[%clk
0:00:34.9]} 47... Qe8 {[%clk 0:00:16.4]} 48. Qh7 {[%clk 0:00:34]} 48... Qh5
{[%clk 0:00:16.5]} 49. Qg8+ {[%clk 0:00:33.6]} 49... Kd7 {[%clk 0:00:11.9]} 50.
Qh7+ {[%clk 0:00:31.6]} 50... Kc6 {[%clk 0:00:11.3]} 51. Qc2+ {[%clk 0:00:32.3]}
51... Kd7 {[%clk 0:00:10.6]} 52. Qh7+ {[%clk 0:00:32.4]} 52... Be7 {[%clk
0:00:10.5]} 53. Bg3 {[%clk 0:00:26.7]} 53... Qg5 {[%clk 0:00:04.9]} 54. Bf4
{[%clk 0:00:23.9]} 54... Qf6 {[%clk 0:00:05.3]} 55. Qxh6 {[%clk 0:00:18.8]}
55... Qf5 {[%clk 0:00:05.8]} 56. Qa6 {[%clk 0:00:16.5]} 56... Qe4+ {[%clk
0:00:06]} 57. Kg1 {[%clk 0:00:16.6]} 57... Qf3 {[%clk 0:00:03.2]} 58. Qb7+
{[%clk 0:00:17.2]} 58... Ke6 {[%clk 0:00:03.8]} 59. Qc8+ {[%clk 0:00:17.5]}
59... Kf7 {[%clk 0:00:03.7]} 60. Qf5+ {[%clk 0:00:18.1]} 60... Bf6 {[%clk
0:00:03.1]} 61. Qd7+ {[%clk 0:00:18.4]} 61... Kg6 {[%clk 0:00:03.7]} 62. Qe8+
{[%clk 0:00:18.8]} 62... Kf5 {[%clk 0:00:04.1]} 63. Qc8+ {[%clk 0:00:18]} 63...
Ke4 {[%clk 0:00:03.9]} 64. Qc2# {[%clk 0:00:17.3]} 1-0

[Event "Late-Titled-Tuesday-Blitz-January-16-2024"]
[Site "Chess.com"]
[Date "2024.01.16"]
[Round "1"]
[White "chessajedrezz2020"]
[Black "KorolDimitriy75"]
[Result "1/2-1/2"]
[WhiteElo "2646"]
[BlackElo "2353"]
[TimeControl "180+1"]
[EndTime "14:08:23 PST"]
[Termination "Game drawn by repetition"]

1. Nf3 {[%clk 0:02:53]} 1... c5 {[%clk 0:03:00]} 2. c4 {[%clk 0:02:52.7]} 2...
g6 {[%clk 0:03:00.1]} 3. g3 {[%clk 0:02:52.4]} 3... Bg7 {[%clk 0:03:00.4]} 4.
Bg2 {[%clk 0:02:52.5]} 4... Nc6 {[%clk 0:03:01.1]} 5. O-O {[%clk 0:02:52.8]}
5... Nh6 {[%clk 0:03:01.8]} 6. Nc3 {[%clk 0:02:52.7]} 6... Nf5 {[%clk 0:03:02]}
7. d3 {[%clk 0:02:51.9]} 7... h5 {[%clk 0:03:02.5]} 8. h4 {[%clk 0:02:51]} 8...
a6 {[%clk 0:03:02.2]} 9. e4 {[%clk 0:02:51.1]} 9... Nfd4 {[%clk 0:03:01.7]} 10.
Bg5 {[%clk 0:02:48.4]} 10... O-O {[%clk 0:02:29.9]} 11. Rb1 {[%clk 0:02:47]}
11... Rb8 {[%clk 0:02:29]} 12. Nd5 {[%clk 0:02:45.1]} 12... Nxf3+ {[%clk
0:02:16]} 13. Bxf3 {[%clk 0:02:45]} 13... b5 {[%clk 0:02:13.8]} 14. b3 {[%clk
0:02:44.4]} 14... Re8 {[%clk 0:02:02.8]} 15. Qd2 {[%clk 0:02:38.4]} 15... d6
{[%clk 0:01:57.9]} 16. Bg2 {[%clk 0:02:29.7]} 16... Nd4 {[%clk 0:01:54.5]} 17.
Kh1 {[%clk 0:02:12.6]} 17... Bb7 {[%clk 0:01:37.1]} 18. Rbe1 {[%clk 0:02:10.8]}
18... Qd7 {[%clk 0:01:27.6]} 19. Bh6 {[%clk 0:01:52.9]} 19... e6 {[%clk
0:01:24.7]} 20. Bxg7 {[%clk 0:01:50]} 20... Kxg7 {[%clk 0:01:25.6]} 21. Nf4
{[%clk 0:01:46.5]} 21... b4 {[%clk 0:01:03.6]} 22. Ne2 {[%clk 0:01:44.2]} 22...
Nxe2 {[%clk 0:00:57.8]} 23. Rxe2 {[%clk 0:01:42.9]} 23... f5 {[%clk 0:00:33.6]}
24. exf5 {[%clk 0:01:36.9]} 24... Bxg2+ {[%clk 0:00:31.8]} 25. Kxg2 {[%clk
0:01:36.6]} 25... exf5 {[%clk 0:00:29]} 26. Rfe1 {[%clk 0:01:36.6]} 26... Rxe2
{[%clk 0:00:21.4]} 27. Qxe2 {[%clk 0:01:36.9]} 27... Kf7 {[%clk 0:00:21]} 28.
Qf3 {[%clk 0:01:36.9]} 28... Re8 {[%clk 0:00:18.4]} 29. Qd5+ {[%clk 0:01:36.7]}
29... Re6 {[%clk 0:00:14]} 30. Re3 {[%clk 0:01:28.7]} 30... a5 {[%clk
0:00:11.7]} 31. Kf3 {[%clk 0:01:26.7]} 31... Kf6 {[%clk 0:00:10.5]} 32. Qa8
{[%clk 0:01:24.2]} 32... Rxe3+ {[%clk 0:00:09.8]} 33. fxe3 {[%clk 0:01:24.2]}
33... Qe7 {[%clk 0:00:05.8]} 34. Qxa5 {[%clk 0:01:20.2]} 34... Qb7+ {[%clk
0:00:04.9]} 35. Kf2 {[%clk 0:01:17.6]} 35... Qh1 {[%clk 0:00:04.8]} 36. Qd8+
{[%clk 0:01:17.6]} 36... Ke6 {[%clk 0:00:04.9]} 37. Qe8+ {[%clk 0:01:12.4]}
37... Kf6 {[%clk 0:00:05.1]} 38. Qf8+ {[%clk 0:01:11.4]} 38... Ke6 {[%clk
0:00:05.3]} 39. Qg8+ {[%clk 0:01:06]} 39... Kf6 {[%clk 0:00:05.4]} 40. Qd5
{[%clk 0:01:06.5]} 40... Qb1 {[%clk 0:00:04.1]} 41. Qxd6+ {[%clk 0:01:05.6]}
41... Kg7 {[%clk 0:00:03.7]} 42. Qe7+ {[%clk 0:00:56.3]} 42... Kh6 {[%clk
0:00:03.2]} 43. Qxc5 {[%clk 0:00:53.3]} 43... Qxa2+ {[%clk 0:00:02.7]} 44. Kf3
{[%clk 0:00:53.9]} 44... Qxb3 {[%clk 0:00:03.1]} 45. Qf8+ {[%clk 0:00:41.9]}
45... Kh7 {[%clk 0:00:03.3]} 46. Qf7+ {[%clk 0:00:42.2]} 46... Kh6 {[%clk
0:00:02.9]} 47. Qg8 {[%clk 0:00:39.3]} 47... Qd1+ {[%clk 0:00:02.3]} 48. Kf4
{[%clk 0:00:29.8]} 48... Qf1+ {[%clk 0:00:02]} 49. Ke5 {[%clk 0:00:27.8]} 49...
Qa1+ {[%clk 0:00:01.8]} 50. d4 {[%clk 0:00:24.6]} 50... Qa5+ {[%clk 0:00:01.9]}
51. d5 {[%clk 0:00:16.3]} 51... Qc7+ {[%clk 0:00:02.3]} 52. Kd4 {[%clk
0:00:12.3]} 52... Qb6+ {[%clk 0:00:01.6]} 53. c5 {[%clk 0:00:05.6]} 53... Qf6+
{[%clk 0:00:02]} 54. Kc4 {[%clk 0:00:05.5]} 54... Qc3+ {[%clk 0:00:02.4]} 55.
Kb5 {[%clk 0:00:06.2]} 55... b3 {[%clk 0:00:03]} 56. Qf8+ {[%clk 0:00:05.8]}
56... Kh7 {[%clk 0:00:03.4]} 57. Qf7+ {[%clk 0:00:05.8]} 57... Kh6 {[%clk
0:00:03.7]} 58. Qf8+ {[%clk 0:00:06]} 58... Kh7 {[%clk 0:00:04.1]} 59. Qe7+
{[%clk 0:00:05.6]} 59... Kh6 {[%clk 0:00:04.4]} 60. Qg5+ {[%clk 0:00:05.5]}
60... Kh7 {[%clk 0:00:04.8]} 61. Qe7+ {[%clk 0:00:05.7]} 61... Kh6 {[%clk
0:00:05.3]} 62. Qf8+ {[%clk 0:00:02.1]} 1/2-1/2

[Event "Late-Titled-Tuesday-Blitz-January-16-2024"]
[Site "Chess.com"]
[Date "2024.01.16"]
[Round "1"]
[White "Malev212"]
[Black "Hui_Li_Macau"]
[Result "1-0"]
[WhiteElo "2640"]
[BlackElo "2318"]
[TimeControl "180+1"]
[EndTime "14:08:29 PST"]
[Termination "Malev212 won by resignation"]

1. e4 {[%clk 0:02:54.7]} 1... e5 {[%clk 0:02:59.6]} 2. f4 {[%clk 0:02:53.2]}
2... d5 {[%clk 0:02:59]} 3. exd5 {[%clk 0:02:52.2]} 3... e4 {[%clk 0:02:59.9]}
4. d3 {[%clk 0:02:51.8]} 4... Nf6 {[%clk 0:02:59.9]} 5. dxe4 {[%clk 0:02:51.7]}
5... Nxe4 {[%clk 0:03:00.8]} 6. Qe2 {[%clk 0:02:45.6]} 6... Bf5 {[%clk
0:02:42.4]} 7. Nf3 {[%clk 0:02:40.7]} 7... Bc5 {[%clk 0:02:40.2]} 8. Nc3 {[%clk
0:02:23]} 8... Qe7 {[%clk 0:02:39.4]} 9. Be3 {[%clk 0:02:20.4]} 9... Nxc3 {[%clk
0:02:39]} 10. Bxc5 {[%clk 0:02:19.6]} 10... Qxe2+ {[%clk 0:02:32.4]} 11. Bxe2
{[%clk 0:02:18.8]} 11... Nxe2 {[%clk 0:02:32.1]} 12. Kxe2 {[%clk 0:02:16.4]}
12... Na6 {[%clk 0:02:32]} 13. Ba3 {[%clk 0:01:41.3]} 13... Bxc2 {[%clk
0:02:21.5]} 14. Rac1 {[%clk 0:01:37.5]} 14... Be4 {[%clk 0:02:19.9]} 15. d6
{[%clk 0:01:37.5]} 15... cxd6 {[%clk 0:01:44.7]} 16. Bxd6 {[%clk 0:01:33.4]}
16... f6 {[%clk 0:01:40]} 17. Rc4 {[%clk 0:01:18.5]} 17... Bxf3+ {[%clk
0:01:17.5]} 18. Kxf3 {[%clk 0:01:17.4]} 18... Kf7 {[%clk 0:01:17.8]} 19. Rd1
{[%clk 0:01:09.6]} 19... Rac8 {[%clk 0:01:11.7]} 20. Rcd4 {[%clk 0:01:04]} 20...
Rhd8 {[%clk 0:01:09.9]} 21. R1d2 {[%clk 0:00:59.3]} 21... Rc6 {[%clk 0:01:05]}
22. f5 {[%clk 0:00:57.7]} 22... Rcc8 {[%clk 0:00:55.2]} 23. Bf4 {[%clk
0:00:56.5]} 23... Ke8 {[%clk 0:00:45.4]} 24. Re2+ {[%clk 0:00:41.5]} 24... Kf7
{[%clk 0:00:45.3]} 25. Red2 {[%clk 0:00:39.2]} 25... Ke8 {[%clk 0:00:45.3]} 26.
Bd6 {[%clk 0:00:38.9]} 26... Rd7 {[%clk 0:00:41.6]} 27. Ba3 {[%clk 0:00:36.2]}
27... Rxd4 {[%clk 0:00:40.4]} 28. Rxd4 {[%clk 0:00:36.1]} 28... Rc7 {[%clk
0:00:35.7]} 29. g4 {[%clk 0:00:36]} 29... Rd7 {[%clk 0:00:32.1]} 30. Rc4 {[%clk
0:00:32.9]} 30... b6 {[%clk 0:00:29.1]} 31. h4 {[%clk 0:00:31.5]} 31... Nc7
{[%clk 0:00:26.7]} 32. g5 {[%clk 0:00:27.5]} 32... Nb5 {[%clk 0:00:23.1]} 33.
Bb4 {[%clk 0:00:27.3]} 33... Rd4 {[%clk 0:00:21.4]} 34. Rxd4 {[%clk 0:00:24.4]}
34... Nxd4+ {[%clk 0:00:22.3]} 35. Ke4 {[%clk 0:00:24.7]} 35... Nc6 {[%clk
0:00:22.1]} 36. Bc3 {[%clk 0:00:24.8]} 36... Kf7 {[%clk 0:00:17.7]} 37. gxf6
{[%clk 0:00:23.5]} 37... gxf6 {[%clk 0:00:18.6]} 38. a4 {[%clk 0:00:22.3]} 38...
a6 {[%clk 0:00:18]} 39. Kd5 {[%clk 0:00:20.6]} 39... Ne7+ {[%clk 0:00:18.3]} 40.
Ke4 {[%clk 0:00:20]} 40... Nc6 {[%clk 0:00:15.6]} 41. b4 {[%clk 0:00:19.1]}
41... b5 {[%clk 0:00:15.8]} 42. a5 {[%clk 0:00:19.1]} 42... Ne7 {[%clk 0:00:16]}
43. h5 {[%clk 0:00:19.1]} 43... Kg7 {[%clk 0:00:15.7]} 44. Bd2 {[%clk
0:00:16.9]} 44... Kf7 {[%clk 0:00:16.1]} 45. h6 {[%clk 0:00:16.7]} 45... Ke8
{[%clk 0:00:14.9]} 46. Bc3 {[%clk 0:00:15.8]} 46... Kf7 {[%clk 0:00:15.2]} 47.
Bd4 {[%clk 0:00:15.8]} 47... Nc6 {[%clk 0:00:14.5]} 48. Bc5 {[%clk 0:00:15.9]}
48... Ne5 {[%clk 0:00:13.5]} 49. Kd5 {[%clk 0:00:15.5]} 49... Ng4 {[%clk
0:00:13.4]} 50. Kc6 {[%clk 0:00:14.3]} 50... Nxh6 {[%clk 0:00:13.7]} 51. Kb7
{[%clk 0:00:14.3]} 51... Nxf5 {[%clk 0:00:14.1]} 52. Kxa6 {[%clk 0:00:15]} 52...
h5 {[%clk 0:00:14]} 53. Kxb5 {[%clk 0:00:14.9]} 53... h4 {[%clk 0:00:14.3]} 54.
a6 {[%clk 0:00:15.1]} 54... h3 {[%clk 0:00:14.5]} 55. Bg1 {[%clk 0:00:15.4]}
55... Nd4+ {[%clk 0:00:12]} 56. Kb6 {[%clk 0:00:14.6]} 56... Nf3 {[%clk
0:00:12.3]} 57. Bh2 {[%clk 0:00:12.8]} 57... Nxh2 {[%clk 0:00:12.5]} 58. a7
{[%clk 0:00:13.1]} 58... Ng4 {[%clk 0:00:11]} 59. a8=Q {[%clk 0:00:13.1]} 59...
h2 {[%clk 0:00:11.4]} 60. Qg2 {[%clk 0:00:10.7]} 60... f5 {[%clk 0:00:11]} 61.
Ka7 {[%clk 0:00:10.5]} 61... Kf6 {[%clk 0:00:10.4]} 62. b5 {[%clk 0:00:10.5]}
1-0